Department family,Entity,Date,Expense type,Expense area,Supplier,Transaction number,Amount,Description,Supplier Post Code,
Departmen of Health,NHS Business Services Authority,01/07/2016,Postage Charges,Prescription Pricing Division,ROYAL MAIL,0080070043,"33,929.00",AC 0912819049,S49 1HQ,
Departmen of Health,NHS Business Services Authority,01/07/2016,Postage Charges,Prescription Pricing Division,ROYAL MAIL,0080070244,"53,015.63",AC 0912819049,S49 1HQ,
Departmen of Health,NHS Business Services Authority,01/07/2016,Postage Charges,Prescription Pricing Division,ROYAL MAIL,0080070381,"41,756.82",AC 0912819049,S49 1HQ,
Departmen of Health,NHS Business Services Authority,01/07/2016,Postage Charges,Prescription Pricing Division,ROYAL MAIL,0080070585,"43,728.13",AC 0912819049,S49 1HQ,
Departmen of Health,NHS Business Services Authority,01/07/2016,Temporary Staff,Prescription Pricing Division,KAINOS SOFTWARE LIMITED,0080071287,"37,147.79",CCN06 - 2016 - Technical Refresh of the,BT7 1NT,
Departmen of Health,NHS Business Services Authority,01/07/2016,Professional Fees,Pensions Division,ADDLESHAW GODDARD,0080071346,"52,598.40",Provision of legal advice for NHS,LS1 1HQ,
Department of Health,NHS Business Services Authority,01/07/2016,Dental Contractors,Dental Services ,,,"179,117,418.00",Payments to Dental Contractors,,
Department of Health,NHS Business Services Authority,01/07/2016,Pharmacy Contractors,Prescription Pricing ,,,"700,184,601.10",Payments to Pharmacy Contractors,,
Department of Health,NHS Business Services Authority,01/07/2016,Pharmacy Contractors,Prescription Pricing ,,,"105,540,550.54",Payments to Pharmacy Contractors,,
Departmen of Health,NHS Business Services Authority,05/07/2016,Security Services Maintenance,Corporate Services,INTEGRATED HEALTH PROJECTS,0080071503,"111,855.94",BSA Task 5.20 Benton Warehouse; draft,HP2 7TR,
Departmen of Health,NHS Business Services Authority,05/07/2016,General Maintenance,NHS Protect,INTEGRATED HEALTH PROJECTS,0080071503,216.62,IHP CERTIFICATES,HP2 7TR,
Department of Health,NHS Business Services Authority,05/07/2016,Pharmacy Contractors,Prescription Pricing ,,,"1,406,957.16",Payments to Pharmacy Contractors,,
Departmen of Health,NHS Business Services Authority,07/07/2016,Rates Charges,Corporate Services,NEWCASTLE CITY COUNCIL,0050032333,"26,590.00",RATES JULY 2016,NE99 2PT,
Departmen of Health,NHS Business Services Authority,07/07/2016,Rates Charges,Corporate Services,NEWCASTLE CITY COUNCIL,0050032334,"37,772.00",RATES JULY 16,NE99 2PT,
Department of Health,NHS Business Services Authority,07/07/2016,Pharmacy Contractors,Prescription Pricing ,,,"118,731.15",Payments to Pharmacy Contractors,,
Departmen of Health,NHS Business Services Authority,08/07/2016,Postage Charges,Prescription Pricing Division,ROYAL MAIL,0080071168,"32,294.24",AC 0912819048,S49 1HQ,
Departmen of Health,NHS Business Services Authority,08/07/2016,Postage Charges,Prescription Pricing Division,ROYAL MAIL,0080071251,"21,986.15",AC 0912819048,S49 1HQ,
Departmen of Health,NHS Business Services Authority,08/07/2016,Temporary Staff,Prescription Pricing Division,BROOK STREET (UK) LTD,0080071438,"26,355.14",A HERON W/E 17.06.16,AL1 4ZX,
Departmen of Health,NHS Business Services Authority,08/07/2016,LAN Maintenance,Corporate Services,LEARNING POOL LIMITED,0080071532,"31,200.00",Licences and Support to access a,BT48 7EL,
Departmen of Health,NHS Business Services Authority,12/07/2016,Temporary Staff,Prescription Pricing Division,BROOK STREET (UK) LTD,0080071551,"31,308.00",C ASH W/E 24/06/16 NEW ORDER,AL1 4ZX,
Departmen of Health,NHS Business Services Authority,15/07/2016,Statutory Payments,Corporate Services,HM REVENUE & CUSTOMS 948PX00194660,0050032337,"1,233,491.92",BSA,NE98 1ZZ,
Departmen of Health,NHS Business Services Authority,15/07/2016,Postage Charges,Prescription Pricing Division,ROYAL MAIL,0080070986,"36,370.44",AC 0912819049  EHIC UK,S49 1HQ,
Departmen of Health,NHS Business Services Authority,15/07/2016,Postage Charges,Prescription Pricing Division,ROYAL MAIL,0080071252,"41,981.94",AC 0912819049  Tax Credits,S49 1HQ,
Departmen of Health,NHS Business Services Authority,15/07/2016,Voice Automation Call Charges,Prescription Pricing Division,KCOM,0080071696,"21,834.90",AC 57996609,HU1 3RE,
Departmen of Health,NHS Business Services Authority,15/07/2016,Cost of Travel Concession,Travel Concession,NETWORK TICKETING LIMITED,0080071722,"45,341.03",Network One Travel Passes,NE6 2BZ,
Departmen of Health,NHS Business Services Authority,15/07/2016,Sun System Maintenance,Prescription Pricing Division,ORACLE CORPORATION UK LTD,0080071734,"25,876.78",Renewal of Software Update License &,RG6 1RA,
Departmen of Health,NHS Business Services Authority,15/07/2016,Sun System Maintenance,Prescription Pricing Division,ORACLE CORPORATION UK LTD,0080071735,"49,063.80",Renewal of Software Update License &,RG6 1RA,
Departmen of Health,NHS Business Services Authority,15/07/2016,Sun System Maintenance,Prescription Pricing Division,ORACLE CORPORATION UK LTD,0080071738,"43,257.05",Renewal of Software Update License &,RG6 1RA,
Departmen of Health,NHS Business Services Authority,15/07/2016,Sun System Maintenance,Prescription Pricing Division,ORACLE CORPORATION UK LTD,0080071739,"59,784.60",Renewal of Software Update License &,RG6 1RA,
Departmen of Health,NHS Business Services Authority,15/07/2016,IT Hardware Purchase Capital,Prescription Pricing Division,CAPITA BUSINESS SERVICES LTD,0080071747,"275,789.94",Project Manager,DL1 9HN,
Department of Health,NHS Business Services Authority,15/07/2016,Statutory Payments,Corporate Services,NHS Pension Scheme,,"776,593.34",PENSIONS,,
Departmen of Health,NHS Business Services Authority,19/07/2016,Professional Fees,Pensions Division,PRICEWATERHOUSE COOPERS LLP,0080071775,"35,244.00",PO 12836 IS COMPLETED / PROF FEES,SE1 2RD,
Departmen of Health,NHS Business Services Authority,19/07/2016,Temporary Staff,Prescription Pricing Division,BROOK STREET (UK) LTD,0080071793,"25,351.16",T BRITTAIN W/E 01.07.16  OT RATE,AL1 4ZX,
Departmen of Health,NHS Business Services Authority,19/07/2016,Voice Automation Call Charges,Prescription Pricing Division,KCOM,0080071842,"22,617.00",AC 57996609,HU1 3RE,
Departmen of Health,NHS Business Services Authority,22/07/2016,Travel and Accommodation,Corporate Services,CLICK TRAVEL LIMITED,0050032364,"49,154.58",NHS BSA ELEMENT OF INVOICE 794279,B1 1TT,
Departmen of Health,NHS Business Services Authority,22/07/2016,Travel and Accommodation,Corporate Services,CLICK TRAVEL LIMITED,0050032365,"71,535.70",TRAVEL CHARGES  JUN2016,B1 1TT,
Departmen of Health,NHS Business Services Authority,22/07/2016,Envision Retained Services,Pensions Division,PAYMASTER (1836) LTD,0050032424,"863,941.40",PARTNERSHIP CONTRACT,RH10 1UH,
Departmen of Health,NHS Business Services Authority,22/07/2016,Temporary Staff,Pensions Division,PRICEWATERHOUSE COOPERS LLP,0080071531,"72,166.86",PURCHASE ORDER 12836 IS COMPLETE,SE1 2RD,
Departmen of Health,NHS Business Services Authority,22/07/2016,Temporary Staff,Pensions Division,PAYMASTER (1836) LTD,0080071855,"23,510.00",Equiniti Paymaster 2015 Scheme Hutton,RH10 1UH,
Departmen of Health,NHS Business Services Authority,22/07/2016,Temporary Staff,Pensions Division,PAYMASTER (1836) LTD,0080071856,"45,011.00",Equiniti Paymaster 2015 Scheme Hutton -,RH10 1UH,
Departmen of Health,NHS Business Services Authority,22/07/2016,Temporary Staff,Pensions Division,PAYMASTER (1836) LTD,0080071862,"63,965.60",Equiniti Paymaster 2015 Scheme Hutton IT,RH10 1UH,
Departmen of Health,NHS Business Services Authority,22/07/2016,Envision Retained Services,Pensions Division,PAYMASTER (1836) LTD,0080071875,"25,000.00",Equiniti Paymaster IT services Fixed,RH10 1UH,
Departmen of Health,NHS Business Services Authority,22/07/2016,Professional Fees,Prescription Pricing Division,APHARI LTD,0080071928,"51,496.86",Year Two (1/04/16 - 31/03/17),SW1Y 6DF,
Departmen of Health,NHS Business Services Authority,22/07/2016,Professional Fees,Prescription Pricing Division,APHARI LTD,0080071929,"44,862.47",Year Two (1/04/16 - 31/03/17),SW1Y 6DF,
Departmen of Health,NHS Business Services Authority,22/07/2016,Professional Fees,Prescription Pricing Division,APHARI LTD,0080071930,"53,414.23",Framework Agreement: Schedule 2 - Order,SW1Y 6DF,
Departmen of Health,NHS Business Services Authority,22/07/2016,Temporary Staff,Corporate Services,CAPITA BUSINESS SERVICES LTD,0080072011,"274,068.34",Cisco Catalyst 4500-X switch,DL1 9HN,
Departmen of Health,NHS Business Services Authority,26/07/2016,Postage Charges,Prescription Pricing Division,ROYAL MAIL,0080071170,"59,942.16",AC 0912819049  EHIC UK,S49 1HQ,
Departmen of Health,NHS Business Services Authority,26/07/2016,Postage Charges,Prescription Pricing Division,ROYAL MAIL,0080071512,"44,362.80",AC 0912819049  EHIC UK,S49 1HQ,
Departmen of Health,NHS Business Services Authority,26/07/2016,Postage Charges,Prescription Pricing Division,ROYAL MAIL,0080071702,"22,831.60",AC 0912819048,S49 1HQ,
Departmen of Health,NHS Business Services Authority,26/07/2016,Temporary Staff,Prescription Pricing Division,BROOK STREET (UK) LTD,0080072047,"30,902.52",T BRITTAIN W/E 08.07.2016,AL1 4ZX,
Departmen of Health,NHS Business Services Authority,26/07/2016,Envision Payroll,Pensions Division,PAYMASTER (1836) LTD,0080072087,"28,957.49",CONTRACT ADJUSTMENT MAY2016,RH10 1UH,
Departmen of Health,NHS Business Services Authority,26/07/2016,Statutory Payments,Statutory Payments,CABINET OFFICE CIVIL SERVICE PENSIONS,0080072090,"52,800.56",CONTRIBUTIONS JUL2016,RG24 9NW,
Department of Health,NHS Business Services Authority,26/07/2016,Travel and Accommodation,NHS Protect,CLICK TRAVEL LTD,0080000062,"17,504.30",NHS PROTECT MAY16,B1 1TT,
Department of Health,NHS Business Services Authority,26/07/2016,Travel and Accommodation,NHS Protect,CLICK TRAVEL LTD,0080000062,"9,312.52",NHS PROTECT MAY16,B1 1TT,
Departmen of Health,NHS Business Services Authority,29/07/2016,Temporary Staff,Pensions Division,PAYMASTER (1836) LTD,0080071858,"29,067.80",,RH10 1UH,
Departmen of Health,NHS Business Services Authority,29/07/2016,Envision Payroll,Pensions Division,PAYMASTER (1836) LTD,0080072046,"28,171.35",CONTRACT ADJUSTMENT JUNE2016,RH10 1UH,
Departmen of Health,NHS Business Services Authority,29/07/2016,Internal Audit Fees,Corporate Services,DEPARTMENT OF HEALTH,0080072108,"42,448.70",1.40 days 15-16 Compliance with,LS2 7UE,
Department of Health,NHS Business Services Authority,29/07/2016,Pharmacy Contractors,Prescription Pricing ,,,"7,804,075.90",Payments to Pharmacy Contractors,,
